fUST/lending_fUST_20240722
["ID","MTS","AMOUNT","RATE_DAILY","PERIOD"]
[332883450,1721623846537,-543.11,0.00014519,2]
[332883451,1721623846546,-538.99,0.0001452,2]
[332883452,1721623846555,-378.02,0.0001452,2]
[332883453,1721623846564,-500.0,0.0001452,2]
[332883454,1721623846573,-1575.24,0.0001452,2]
[332883455,1721623846583,-500.0,0.0001452,2]
[332883456,1721623846592,-500.0,0.0001452,2]
[332883457,1721623846601,-500.0,0.0001452,2]
[332883458,1721623846610,-751.93,0.0001452,2]
[332883459,1721623846620,-500.0,0.0001452,2]
[332883460,1721623846629,-500.0,0.0001452,2]
[332883461,1721623846638,-500.0,0.0001452,2]
[332883463,1721623846647,-500.0,0.0001452,2]
[332883465,1721623846657,-500.0,0.0001452,2]
[332883466,1721623846666,-377.65,0.0001452,2]
[332883467,1721623846675,-350.52209467,0.0001452,2]
[332883468,1721623846898,-390.62790533,0.0001452,2]
[332883469,1721623846908,-500.0,0.0001452,2]
[332883470,1721623846918,-500.0,0.0001452,2]
[332883471,1721623846927,-500.0,0.0001452,2]
[332883472,1721623846948,-500.0,0.0001452,2]
[332883473,1721623846959,-450.96,0.0001452,2]
[332883474,1721623846969,-500.0,0.0001452,2]
[332883475,1721623846978,-599.40834532,0.0001452,2]
[332883476,1721623846988,-500.0,0.0001452,2]
[332883477,1721623846997,-500.0,0.0001452,2]
[332883478,1721623847008,-500.0,0.0001452,2]
[332883479,1721623847017,-500.0,0.0001452,2]
[332883480,1721623847027,-500.0,0.0001452,2]
[332883481,1721623847036,-500.0,0.0001452,2]
[332883482,1721623847046,-500.0,0.0001452,2]
[332883483,1721623847055,-500.0,0.0001452,2]
[332883484,1721623847065,-500.0,0.0001452,2]
[332883485,1721623847075,-500.0,0.0001452,2]
[332883486,1721623847084,-500.0,0.0001452,2]
[332883487,1721623847094,-331.21394202,0.0001452,2]
[332883488,1721623847103,-233.62941123,0.0001452,2]
[332883489,1721623847113,-592.8700023,0.0001452,2]
[332883490,1721623847124,-500.0,0.0001452,2]
[332883491,1721623847133,-500.0,0.0001452,2]
[332883492,1721623847143,-507.14398914,0.0001452,2]
[332883493,1721623847152,-500.0,0.0001452,2]
[332883494,1721623847162,-500.0,0.0001452,2]
[332883495,1721623847172,-500.0,0.0001452,2]
[332883496,1721623847182,-585.93209491,0.0001452,2]
[332883497,1721623847192,-500.0,0.0001452,2]
[332883499,1721623847202,-492.041417,0.0001452,2]
[332883500,1721623847211,-465.08526089,0.0001452,2]
[332883501,1721623847221,-514.52401745,0.0001452,2]
[332883502,1721623847230,-500.0,0.0001452,2]
[332883503,1721623847240,-500.0,0.0001452,2]
[332883504,1721623847250,-500.0,0.0001452,2]
[332883506,1721623847260,-500.0,0.0001452,2]
[332883507,1721623847270,-290.3705009,0.0001452,2]
[332883508,1721623847279,-500.0,0.0001452,2]
[332883509,1721623847289,-500.0,0.0001452,2]
[332883510,1721623847299,-167.0,0.000146,2]
[332883511,1721623847308,-306.295781,0.00014656,2]
[332883512,1721623847319,-150.112233,0.000147,3]
[332883514,1721623847328,-2373.20469889,0.00014767,2]
[332883515,1721623847338,-543.11,0.00014793,2]
[332883516,1721623847347,-500.0,0.00014794,2]
[332883517,1721623847356,-1575.24,0.00014794,2]
[332883518,1721623847367,-244.99,0.00014794,2]
[332883519,1721623847376,-500.0,0.00014794,2]
[332883520,1721623847385,-500.0,0.00014794,2]
[332883521,1721623847395,-751.93,0.00014794,2]
[332883522,1721623847405,-500.0,0.00014794,2]
[332883523,1721623847415,-500.0,0.00014794,2]
[332883524,1721623847425,-169.97,0.00014794,2]
[332883525,1721623847435,-500.0,0.00014794,2]
[332883526,1721623847445,-500.0,0.00014794,2]
[332883527,1721623847455,-741.15,0.00014794,2]
[332883528,1721623847465,-235.17549622,0.00014794,2]
[332883529,1721623847520,-264.82450378,0.00014794,2]
[332883531,1721623847530,-500.0,0.00014794,2]
[332883532,1721623847540,-313.44,0.00014794,2]
[332883533,1721623847550,-500.0,0.00014794,2]
[332883534,1721623847561,-500.0,0.00014794,2]
[332883535,1721623847572,-500.0,0.00014794,2]
[332883536,1721623847582,-500.0,0.00014794,2]
[332883537,1721623847592,-500.0,0.00014794,2]
[332883538,1721623847602,-508.46623507,0.00014794,2]
[332883539,1721623847612,-552.5939151,0.00014794,2]
[332883540,1721623847624,-285.24884328,0.00014794,2]
[332883541,1721623847634,-500.0,0.00014794,2]
[332883542,1721623847644,-197.4446956,0.00014794,2]
[332883543,1721623847656,-539.71910444,0.00014794,2]
[332883544,1721623847666,-500.0,0.00014794,2]
[332883545,1721623847676,-496.26873286,0.00014794,2]
[332883546,1721623847685,-500.0,0.00014794,2]
[332883547,1721623847697,-500.0,0.00014794,2]
[332883548,1721623847710,-165.0,0.00014795,2]
[332883549,1721623847722,-150.0,0.00014806,2]
[332883550,1721623847735,-642.326,0.00014806,2]
[332883551,1721623847746,-1409.0,0.00014806,2]
[332883552,1721623847757,-154.4803565,0.00014832,2]
[332883553,1721623847771,-153.0,0.00014832,2]
[332883554,1721623847783,-153.0,0.00014832,2]
[332883555,1721623847795,-306.0,0.00014832,2]
[332883556,1721623847805,-206.6124252,0.00014848,2]
[332883557,1721623847815,-206.6124252,0.00014848,2]
[332883558,1721623847827,-206.6124252,0.00014848,2]
[332883559,1721623847837,-206.6124252,0.00014848,2]
[332883560,1721623847848,-206.6124252,0.00014848,2]
[332883561,1721623847858,-413.1941825,0.00014848,2]
[332883562,1721623847869,-542.669602,0.00014848,2]
[332883563,1721623847881,-413.2248504,0.00014848,2]
[332883564,1721623847893,-222.08231388,0.00015,2]
[332883565,1721623847904,-150.112233,0.00015,2]
[332883566,1721623847915,-543.11,0.00015067,2]
[332883567,1721623847927,-500.0,0.00015068,2]
[332883568,1721623847937,-1575.24,0.00015068,2]
[332883569,1721623847948,-500.0,0.00015068,2]
[332883570,1721623847958,-500.0,0.00015068,2]
[332883571,1721623847969,-751.93,0.00015068,2]
[332883572,1721623847979,-240.37231982,0.00015068,2]
[332883573,1721623847990,-500.0,0.00015068,2]
[332883574,1721623848001,-500.0,0.00015068,2]
[332883575,1721623848016,-500.0,0.00015068,2]
[332883576,1721623848026,-741.15,0.00015068,2]
[332883577,1721623848036,-500.0,0.00015068,2]
[332883578,1721623848048,-500.0,0.00015068,2]
[332883579,1721623848059,-500.0,0.00015068,2]
[332883580,1721623848070,-500.0,0.00015068,2]
[332883581,1721623848081,-500.0,0.00015068,2]
[332883582,1721623848092,-344.6243852,0.00015068,2]
[332883583,1721623848104,-500.0,0.00015068,2]
[332883584,1721623848115,-500.0,0.00015068,2]
[332883585,1721623848126,-500.0,0.00015068,2]
[332883586,1721623848136,-500.0,0.00015068,2]
[332883587,1721623848146,-164.285178,0.00015068,2]
[332883588,1721623848158,-153.0,0.00015068,2]
[332883589,1721623848169,-203.39,0.00015342,2]
[332883590,1721623848182,-1500.62525148,0.00015342,2]
[332883595,1721624626661,555.0,0.00025,120]
[332883772,1721625042762,-154.79103211,9.999e-05,2]
[332883773,1721625042771,-703.76,0.00013698,2]
[332883775,1721625042781,-500.0,0.00013698,2]
[332883776,1721625042790,-538.99,0.00013698,2]
[332883778,1721625042799,-438.20096803,0.00013698,2]
[332883780,1721625042818,-61.79903197,0.00013698,2]
[332883782,1721625042828,-500.0,0.00013698,2]
[332883783,1721625042837,-24.87669273,0.00013698,2]
[332883785,1721625042848,-475.12330727,0.00013698,2]
[332883787,1721625042857,-500.0,0.00013698,2]
[332883788,1721625042865,-259.93669273,0.00013698,2]
[332883790,1721625042877,-245.90628018,0.00013698,2]
[332883792,1721625042886,-302.14147731,0.00013698,2]
[332883793,1721625042896,-582.74,0.00013698,2]
[332883795,1721625042906,-500.0,0.00013698,2]
[332883796,1721625042915,-500.0,0.00013698,2]
[332883798,1721625042925,-276.21,0.00013698,2]
[332883800,1721625042934,-500.0,0.00013698,2]
[332883802,1721625042944,-374.15193267,0.00013698,2]
[332883804,1721625042967,-500.0,0.00013698,2]
[332883806,1721625042978,-500.0,0.00013698,2]
[332883808,1721625042987,-435.93,0.00013698,2]
[332883809,1721625042997,-500.0,0.00013698,2]
[332883811,1721625043007,-500.0,0.00013698,2]
[332883813,1721625043019,-195.70422077,0.00013698,2]
[332883818,1721625045912,-304.29577923,0.00013698,2]
[332883819,1721625045923,-331.70011148,0.00013698,2]
[332883869,1721626232105,-413.45473308,9.999e-05,2]
[332883870,1721626232116,-820.32987122,9.999e-05,2]
[332883871,1721626232127,-392.40605053,9.999e-05,2]
[332883872,1721626232137,-206.63502011,9.999e-05,2]
[332883873,1721626232147,-4267.1821555,0.00012119,2]
[332883874,1721626232157,-200.4214554,0.00012227,2]
[332883875,1721626232168,-160.823058,0.0001235,2]
[332883876,1721626232180,-160.823058,0.00012421,2]
[332883877,1721626232190,-160.823058,0.00012493,2]
[332883878,1721626232202,-160.823058,0.00012564,2]
[332883879,1721626232213,-160.823058,0.00012636,2]
[332883880,1721626232223,-160.823058,0.00012707,2]
[332883881,1721626232233,-160.823058,0.00012779,2]
[332883882,1721626232242,-160.823058,0.0001285,2]
[332883883,1721626232252,-160.823058,0.00012922,2]
[332883884,1721626232261,-160.823058,0.00012993,2]
[332883885,1721626232271,-227.0,0.00013538,2]
[332883886,1721626232280,-5304.84073988,0.00013539,2]
[332883887,1721626232291,-1779.90352422,0.00013598,2]
[332883888,1721626232300,-153.0,0.00013641,2]
[332883889,1721626232310,-306.0,0.00013641,2]
[332883890,1721626232319,-153.0,0.00013641,2]
[332883891,1721626232329,-357.13172915,0.0001368,2]
[332883892,1721626232338,-51542.14429403,0.00013688,2]
[332883897,1721626237887,-347725.16612497,0.00013688,2]
[332883898,1721626237898,-980.83988852,0.00013698,2]
[332883899,1721626237908,-500.0,0.00013698,2]
[332883900,1721626237918,-511.22,0.00013698,2]
[332883901,1721626237931,-500.0,0.00013698,2]
[332883902,1721626237940,-500.0,0.00013698,2]
[332883903,1721626237950,-500.0,0.00013698,2]
[332883904,1721626237962,-500.0,0.00013698,2]
[332883905,1721626237971,-870.55,0.00013698,2]
[332883906,1721626237982,-371.00016222,0.00013698,2]
[332883907,1721626237991,-500.0,0.00013698,2]
[332883908,1721626238002,-500.0,0.00013698,2]
[332883909,1721626238013,-222.53,0.00013698,2]
[332883910,1721626238024,-231.27976673,0.00013698,2]
[332883911,1721626238034,-500.0,0.00013698,2]
[332883912,1721626238047,-500.0,0.00013698,2]
[332883913,1721626238056,-500.0,0.00013698,2]
[332883914,1721626238067,-500.0,0.00013698,2]
[332883915,1721626238078,-500.0,0.00013698,2]
[332883916,1721626238089,-500.0,0.00013698,2]
[332883917,1721626238099,-383.6,0.00013698,2]
[332883918,1721626238109,-500.0,0.00013698,2]
[332883919,1721626238121,-500.0,0.00013698,2]
[332883920,1721626238130,-543.11,0.00013698,2]
[332883921,1721626238140,-500.0,0.00013698,2]
[332883922,1721626238150,-632.2865234,0.00013698,2]
[332883923,1721626238161,-500.0,0.00013698,2]
[332883924,1721626238170,-500.0,0.00013698,2]
[332883925,1721626238180,-500.0,0.00013698,2]
[332883926,1721626238190,-500.0,0.00013698,2]
[332883928,1721626238199,-719.93,0.00013698,2]
[332883929,1721626238209,-518.32252822,0.00013698,2]
[332883931,1721626238218,-500.0,0.00013698,2]
[332883932,1721626238228,-331.66,0.00013698,2]
[332883934,1721626238238,-267.77,0.00013698,2]
[332883936,1721626238247,-500.0,0.00013698,2]
[332883938,1721626238256,-500.0,0.00013698,2]
[332883940,1721626238266,-500.0,0.00013698,2]
[332883942,1721626238275,-500.0,0.00013698,2]
[332883944,1721626238285,-500.0,0.00013698,2]
[332883946,1721626238295,-485.60133313,0.00013698,2]
[332883948,1721626238304,-277.01550922,0.00013698,2]
[332883950,1721626238314,-625.08614798,0.00013698,2]
[332883952,1721626238323,-500.0,0.00013698,2]
[332883954,1721626238332,-500.0,0.00013698,2]
[332883956,1721626238341,-278.59039261,0.00013698,2]
[332883958,1721626238351,-203.69218069,0.00013698,2]
[332883960,1721626238361,-312.14198999,0.00013698,2]
[332883962,1721626238372,-500.0,0.00013698,2]
[332883964,1721626238384,-629.57450782,0.00013698,2]
[332883967,1721626238398,-492.95986557,0.00013698,2]
[332883969,1721626238409,-500.0,0.00013698,2]
[332883971,1721626238420,-563.72267921,0.00013698,2]
[332883973,1721626238430,-500.0,0.00013698,2]
[332883975,1721626238442,-501.75708608,0.00013698,2]
[332883977,1721626238452,-2110.33261488,0.00013698,2]
[332883979,1721626238462,-19442.92605809,0.00013698,2]
[332883981,1721626238472,-4707.50365433,0.00013698,2]
[332883983,1721626238482,-89242.36586827,0.00013698,2]
[332884108,1721626642856,1331.65,0.00024,60]
[332884188,1721627432751,-188.02900327,9.999e-05,2]
[332884189,1721627432760,-62.78699672,9.999e-05,2]
[332884190,1721627432772,-396.34894255,9.999e-05,2]
[332884191,1721627432781,-346.24214689,9.999e-05,2]
[332884192,1721627432791,-413.45473308,9.999e-05,2]
[332884193,1721627432800,-600.13398143,9.999e-05,2]
[332884194,1721627432810,-567.94371923,9.999e-05,2]
[332884195,1721627432820,-240.51585871,9.999e-05,2]
[332884196,1721627432829,-543.37131308,9.999e-05,2]
[332884197,1721627432838,-287.42676554,0.0001,2]
[332884198,1721627432847,-217.45,0.00010959,2]
[332884199,1721627432857,-250.0,0.0001231,2]
[332884200,1721627432866,-250.0,0.00012344,2]
[332884201,1721627432876,-250.0,0.00012377,2]
[332884202,1721627432885,-250.0,0.00012411,2]
[332884203,1721627432895,-250.0,0.00012445,2]
[332884204,1721627432908,-250.0,0.00012479,2]
[332884205,1721627432917,-250.0,0.00012512,2]
[332884206,1721627432927,-250.0,0.00012546,2]
[332884207,1721627432937,-250.0,0.0001258,2]
[332884208,1721627432946,-250.0,0.00012614,2]
[332884209,1721627432955,-250.0,0.00012647,2]
[332884210,1721627432965,-250.0,0.00012681,2]
[332884211,1721627432974,-250.0,0.00012715,2]
[332884212,1721627432983,-250.0,0.00012749,2]
[332884213,1721627432995,-250.0,0.00012782,2]
[332884214,1721627433004,-250.0,0.00012816,2]
[332884215,1721627433014,-250.0,0.0001285,2]
[332884216,1721627433023,-250.0,0.00012884,2]
[332884217,1721627433034,-250.0,0.00012917,2]
[332884218,1721627433043,-250.0,0.00012951,2]
[332884219,1721627433053,-206.6425332,0.000131,2]
[332884220,1721627433063,-153.0,0.00013151,2]
[332884221,1721627433074,-293.8749366,0.00013151,2]
[332884222,1721627433084,-153.0,0.00013151,2]
[332884223,1721627433095,-153.0,0.00013178,2]
[332884224,1721627433104,-206.6425332,0.00013178,2]
[332884225,1721627433114,-293.8031846,0.00013178,2]
[332884226,1721627433123,-153.0,0.00013178,2]
[332884227,1721627433133,-206.6425332,0.00013178,2]
[332884228,1721627433143,-206.6425332,0.00013178,2]
[332884229,1721627433156,-206.6124252,0.00013188,2]
[332884230,1721627433165,-293.8749366,0.000132,2]
[332884231,1721627433174,-153.0,0.000132,2]
[332884232,1721627433183,-306.9468442,0.000132,2]
[332884233,1721627433193,-206.6124252,0.000132,2]
[332884234,1721627433202,-153.0,0.000132,2]
[332884235,1721627433212,-153.0,0.000132,2]
[332884236,1721627433221,-206.6124252,0.000132,2]
[332884237,1721627433230,-153.0,0.000132,2]
[332884238,1721627433239,-153.0,0.000132,2]
[332884239,1721627433248,-587.7498732,0.000132,2]
[332884240,1721627433258,-413.1635146,0.000132,2]
[332884241,1721627433267,-159.3204449,0.000132,2]
[332884242,1721627433277,-293.8749366,0.000132,2]
[332884243,1721627433287,-206.6425332,0.000132,2]
[332884244,1721627433297,-153.0,0.000132,2]
[332884245,1721627433306,-153.0,0.000132,2]
[332884246,1721627433315,-306.0,0.000132,2]
[332884247,1721627433324,-293.8749366,0.000132,2]
[332884248,1721627433334,-206.6425332,0.000132,2]
[332884249,1721627433344,-206.6425332,0.000132,2]
[332884250,1721627433353,-206.6425332,0.000132,2]
[332884251,1721627433363,-887.39339376,0.00013578,2]
[332884252,1721627433373,-1557.41558364,0.00013597,2]
[332884253,1721627433383,-367.39222983,0.00013641,2]
[332884254,1721627433393,-48332.59358272,0.00013678,2]
[332884255,1721627433409,-8346.85392409,0.00013678,2]
[332884258,1721627438138,-5304.84073988,0.00013489,2]
[332884259,1721627438148,-198314.30130946,0.00013678,2]
[332884260,1721627438178,-3362.46,0.00013678,2]
[332884261,1721627438189,-166205.87953373,0.00013678,2]
[332884262,1721627438199,-5000.0,0.00013697,2]
[332884263,1721627438208,-506.16326635,0.00013698,2]
[332884264,1721627438217,-500.0,0.00013698,2]
[332884265,1721627438226,-506.51256414,0.00013698,2]
[332884266,1721627438236,-500.0,0.00013698,2]
[332884267,1721627438245,-500.0,0.00013698,2]
[332884268,1721627438255,-517.00731958,0.00013698,2]
[332884269,1721627438264,-514.18858457,0.00013698,2]
[332884270,1721627438274,-505.27845831,0.00013698,2]
[332884271,1721627438284,-442.32467591,0.00013698,2]
[332884272,1721627438294,-500.0,0.00013698,2]
[332884273,1721627438303,-500.0,0.00013698,2]
[332884274,1721627438313,-500.0,0.00013698,2]
[332884275,1721627438323,-983.41,0.00013698,2]
[332884276,1721627438333,-500.0,0.00013698,2]
[332884277,1721627438343,-500.0,0.00013698,2]
[332884278,1721627438352,-500.0,0.00013698,2]
[332884279,1721627438362,-500.0,0.00013698,2]
[332884280,1721627438372,-500.0,0.00013698,2]
[332884281,1721627438382,-500.0,0.00013698,2]
[332884282,1721627438392,-224.51156347,0.00013698,2]
[332884283,1721627438403,-500.0,0.00013698,2]
[332884284,1721627438413,-500.0,0.00013698,2]
[332884285,1721627438423,-500.0,0.00013698,2]
[332884286,1721627438432,-500.0,0.00013698,2]
[332884287,1721627438455,-500.0,0.00013698,2]
[332884288,1721627438466,-500.0,0.00013698,2]
[332884289,1721627438475,-500.0,0.00013698,2]
[332884290,1721627438486,-500.0,0.00013698,2]
[332884291,1721627438496,-500.0,0.00013698,2]
[332884292,1721627438506,-500.0,0.00013698,2]
[332884293,1721627438516,-509.54338405,0.00013698,2]
[332884294,1721627438526,-500.0,0.00013698,2]
[332884295,1721627438536,-500.0,0.00013698,2]
[332884296,1721627438546,-500.0,0.00013698,2]
[332884297,1721627438556,-500.0,0.00013698,2]
[332884299,1721627438565,-500.0,0.00013698,2]
[332884300,1721627438575,-500.0,0.00013698,2]
[332884301,1721627438584,-500.0,0.00013698,2]
[332884302,1721627438594,-500.0,0.00013698,2]
[332884303,1721627438604,-500.0,0.00013698,2]
[332884304,1721627438614,-500.0,0.00013698,2]
[332884305,1721627438623,-500.0,0.00013698,2]
[332884306,1721627438633,-500.0,0.00013698,2]
[332884307,1721627438643,-500.89573504,0.00013698,2]
[332884308,1721627438654,-319.33455858,0.00013698,2]
[332884309,1721627438663,-500.0,0.00013698,2]
[332884310,1721627438673,-500.0,0.00013698,2]
[332884311,1721627438683,-500.0,0.00013698,2]
[332884312,1721627438693,-562.60270454,0.00013698,2]
[332884313,1721627438703,-500.0,0.00013698,2]
[332884314,1721627438713,-500.0,0.00013698,2]
[332884315,1721627438723,-500.0,0.00013698,2]
[332884316,1721627438732,-500.0,0.00013698,2]
[332884317,1721627438742,-500.0,0.00013698,2]
[332884318,1721627438751,-500.0,0.00013698,2]
[332884319,1721627438761,-504.98413447,0.00013698,2]
[332884320,1721627438772,-500.0,0.00013698,2]
[332884321,1721627438782,-500.89620177,0.00013698,2]
[332884322,1721627438791,-500.0,0.00013698,2]
[332884323,1721627438801,-500.0,0.00013698,2]
[332884324,1721627438811,-500.0,0.00013698,2]
[332884325,1721627438820,-500.0,0.00013698,2]
[332884326,1721627438830,-500.0,0.00013698,2]
[332884327,1721627438840,-500.0,0.00013698,2]
[332884328,1721627438850,-505.23614424,0.00013698,2]
[332884329,1721627438860,-506.22761474,0.00013698,2]
[332884330,1721627438869,-500.0,0.00013698,2]
[332884331,1721627438880,-500.0,0.00013698,2]
[332884332,1721627438891,-500.0,0.00013698,2]
[332884333,1721627438900,-500.0,0.00013698,2]
[332884334,1721627438911,-404.99770322,0.00013698,2]
[332884335,1721627438920,-471.06056895,0.00013698,2]
[332884336,1721627438930,-500.0,0.00013698,2]
[332884337,1721627438940,-633.92,0.00013698,2]
[332884338,1721627438949,-500.0,0.00013698,2]
[332884339,1721627438960,-500.0,0.00013698,2]
[332884340,1721627438970,-500.0,0.00013698,2]
[332884341,1721627438980,-500.0,0.00013698,2]
[332884342,1721627438993,-427.33226804,0.00013698,2]
[332884343,1721627439005,-504.6871762,0.00013698,2]
[332884344,1721627439015,-500.0,0.00013698,2]
[332884345,1721627439025,-505.43988984,0.00013698,2]
[332884346,1721627439035,-500.0,0.00013698,2]
[332884347,1721627439044,-501.99577457,0.00013698,2]
[332884348,1721627439054,-509.47361346,0.00013698,2]
[332884349,1721627439067,-500.0,0.00013698,2]
[332884350,1721627439077,-500.0,0.00013698,2]
[332884351,1721627439087,-511.14918565,0.00013698,2]
[332884352,1721627439097,-500.0,0.00013698,2]
[332884353,1721627439106,-500.0,0.00013698,2]
[332884354,1721627439116,-185.50399782,0.00013698,2]
[332884355,1721627439125,-500.0,0.00013698,2]
[332884356,1721627439135,-500.0,0.00013698,2]
[332884357,1721627439144,-500.0,0.00013698,2]
[332884358,1721627439155,-500.0,0.00013698,2]
[332884359,1721627439164,-502.88470535,0.00013698,2]
[332884360,1721627439174,-324.87236378,0.00013698,2]
[332884361,1721627439183,-500.0,0.00013698,2]
[332884362,1721627439193,-572.94154493,0.00013698,2]
[332884363,1721627439203,-232.33119763,0.00013698,2]
[332884364,1721627439212,-500.0,0.00013698,2]
[332884365,1721627439221,-501.01426139,0.00013698,2]
[332884366,1721627439231,-500.0,0.00013698,2]
[332884367,1721627439240,-500.0,0.00013698,2]
[332884368,1721627439249,-500.0,0.00013698,2]
[332884369,1721627439259,-500.0,0.00013698,2]
[332884370,1721627439268,-282.81910119,0.00013698,2]
[332884371,1721627439277,-500.0,0.00013698,2]
[332884372,1721627439286,-500.0,0.00013698,2]
[332884373,1721627439299,-500.0,0.00013698,2]
[332884374,1721627439555,-500.0,0.00013698,2]
[332884375,1721627439568,-505.68965866,0.00013698,2]
[332884376,1721627439578,-500.0,0.00013698,2]
[332884377,1721627439587,-509.79821889,0.00013698,2]
[332884378,1721627439597,-500.0,0.00013698,2]
[332884379,1721627439607,-500.0,0.00013698,2]
[332884380,1721627439616,-500.0,0.00013698,2]
[332884381,1721627439626,-500.0,0.00013698,2]
[332884382,1721627439636,-557.84269457,0.00013698,2]
[332884383,1721627439645,-500.0,0.00013698,2]
[332884384,1721627439656,-500.0,0.00013698,2]
[332884385,1721627439665,-540.36292792,0.00013698,2]
[332884386,1721627439674,-500.0,0.00013698,2]
[332884387,1721627439684,-500.0,0.00013698,2]
[332884388,1721627439694,-634.47584188,0.00013698,2]
[332884389,1721627439703,-502.22503493,0.00013698,2]
[332884390,1721627439712,-503.18886382,0.00013698,2]
[332884391,1721627439721,-500.0,0.00013698,2]
[332884392,1721627439730,-500.0,0.00013698,2]
[332884393,1721627439741,-591.06616635,0.00013698,2]
[332884395,1721627439750,-500.0,0.00013698,2]
[332884397,1721627439759,-503.54918777,0.00013698,2]
[332884399,1721627439769,-503.8121749,0.00013698,2]
[332884401,1721627439778,-500.0,0.00013698,2]
[332884403,1721627439788,-500.0,0.00013698,2]
[332884404,1721627439798,-505.86525202,0.00013698,2]
[332884405,1721627439807,-500.0,0.00013698,2]
[332884406,1721627439816,-500.0,0.00013698,2]
[332884407,1721627439825,-500.0,0.00013698,2]
[332884408,1721627439835,-500.0,0.00013698,2]
[332884409,1721627439844,-500.0,0.00013698,2]
[332884410,1721627439853,-500.0,0.00013698,2]
[332884411,1721627439864,-500.0,0.00013698,2]
[332884412,1721627439874,-500.0,0.00013698,2]
[332884413,1721627439884,-500.0,0.00013698,2]
[332884414,1721627439894,-500.0,0.00013698,2]
[332884415,1721627439905,-502.08566498,0.00013698,2]
[332884416,1721627439915,-502.63812384,0.00013698,2]
[332884417,1721627439926,-500.0,0.00013698,2]
[332884418,1721627439936,-501.83143831,0.00013698,2]
[332884419,1721627439947,-505.82577236,0.00013698,2]
[332884420,1721627439957,-500.0,0.00013698,2]
[332884421,1721627439966,-500.0,0.00013698,2]
[332884422,1721627439976,-500.0,0.00013698,2]
[332884424,1721627439987,-504.29319091,0.00013698,2]
[332884426,1721627440002,-500.0,0.00013698,2]
[332884428,1721627440011,-512.01137092,0.00013698,2]
[332884430,1721627440022,-504.40858094,0.00013698,2]
[332884433,1721627440034,-500.0,0.00013698,2]
[332884435,1721627440044,-500.0,0.00013698,2]
[332884437,1721627440055,-500.0,0.00013698,2]
[332884438,1721627440064,-500.0,0.00013698,2]
[332884440,1721627440077,-500.0,0.00013698,2]
[332884442,1721627440086,-500.0,0.00013698,2]
[332884444,1721627440095,-529.89709228,0.00013698,2]
[332884446,1721627440105,-500.0,0.00013698,2]
[332884448,1721627440115,-500.0,0.00013698,2]
[332884450,1721627440124,-505.33330674,0.00013698,2]
[332884452,1721627440134,-500.0,0.00013698,2]
[332884454,1721627440144,-500.0,0.00013698,2]
[332884456,1721627440155,-500.0,0.00013698,2]
[332884458,1721627440166,-204.8816853,0.00013698,2]
[332884460,1721627440178,-505.24936389,0.00013698,2]
[332884462,1721627440189,-503.66669502,0.00013698,2]
[332884464,1721627440198,-500.0,0.00013698,2]
[332884465,1721627440209,-500.0,0.00013698,2]
[332884466,1721627440219,-500.0,0.00013698,2]
[332884467,1721627440229,-504.2214068,0.00013698,2]
[332884468,1721627440238,-500.0,0.00013698,2]
[332884469,1721627440249,-500.0,0.00013698,2]